bitfinex-derivatives/quotes_ETHF0:USTF0_20260312
["timestamp","ask_amount","ask_price","bid_price","bid_amount"]
[1773286190385,0.25605701,2029.1,2028.6,0.57763859]
[1773286191483,0.25605701,2029.1,2028.6,0.58372029]
[1773286193292,0.25757991,2028.9,2028.5,0.57763859]
[1773286194391,0.25757991,2028.9,2028.5,0.58381107]
[1773286195894,1.3498508,2029.0,2027.9,0.57763859]
[1773286195895,0.24976028,2028.7,2027.9,0.57763859]
[1773286196093,6.456,2028.7,2028.1,0.57763859]
[1773286197090,6.456,2028.7,2028.1,0.58403892]
[1773286197286,6.70584037,2028.7,2028.1,0.58403892]
[1773286198794,0.24984037,2028.6,2028.1,0.58403892]
[1773286200496,6.456,2028.7,2028.1,0.58403892]
[1773286200698,6.70647582,2028.7,2028.1,0.58403892]
[1773286201195,0.25051365,2028.5,2028.1,0.00640033]
[1773286201394,0.25051365,2028.5,2028.1,0.58403892]
[1773286201595,6.70751365,2028.5,2028.1,0.58403892]
[1773286203795,0.24957444,2028.4,2028.1,0.58403892]
[1773286204099,0.24957444,2028.4,2028.1,0.00640033]
[1773286204293,0.24957444,2028.4,2027.9,0.57763859]
[1773286205201,0.24957444,2028.4,2027.9,0.58159707]
[1773286209500,0.25095618,2028.3,2027.9,0.58159707]
[1773286209906,0.25095618,2028.3,2027.8,0.57763859]
[1773286210506,0.25095618,2028.3,2027.3,1.35056562]
[1773286210507,0.25095618,2028.3,2027.4,0.57763859]
[1773286210910,0.25095618,2028.3,2027.4,0.58174017]
[1773286212806,6.71074949,2028.5,2027.6,0.57763859]
[1773286213207,0.25274949,2028.4,2027.6,0.57763859]
[1773286214611,6.71074949,2028.4,2027.6,0.57763859]
[1773286215208,0.25621065,2028.6,2027.7,1.35056562]
[1773286215513,6.458,2028.5,2027.8,0.57763859]
[1773286216706,6.71421065,2028.5,2027.8,0.57763859]
[1773286218616,0.21111682,2028.4,2027.8,0.57763859]
[1773286220317,0.21390515,2028.6,2027.8,0.57763859]
[1773286220512,6.67190515,2028.5,2027.8,0.57763859]
[1773286220714,0.21390515,2028.4,2027.8,0.57763859]
[1773286222820,0.20712951,2029.1,2028.1,0.56074029]
[1773286223121,0.21066611,2029.0,2028.1,0.56074029]
[1773286223611,0.21066611,2029.0,2028.3,0.56074029]
[1773286223817,0.24638,2029.3,2028.3,0.56074029]
[1773286223818,0.21066611,2029.1,2028.3,0.56074029]
[1773286225115,0.24638,2029.3,2028.3,0.56074029]
[1773286225116,0.20943546,2029.3,2028.3,0.56074029]
[1773286225320,0.20943546,2029.3,2028.9,0.56074029]
[1773286225617,0.20943546,2029.3,2028.9,0.56706692]
[1773286226518,0.21556778,2029.4,2028.9,0.56706692]
[1773286229323,6.64341281,2029.3,2028.9,0.56706692]
[1773286229523,0.18641281,2029.3,2028.9,0.56706692]
[1773286231417,0.00613232,2029.4,2028.9,0.56706692]
[1773286232726,0.19414796,2029.4,2028.9,0.56706692]
[1773286234428,0.19414796,2029.4,2028.9,0.00632663]
[1773286234727,0.18668228,2029.3,2028.7,0.56074029]
[1773286234928,0.18668228,2029.3,2028.1,0.56074029]
[1773286235721,0.18668228,2029.3,2028.1,0.56698876]
[1773286236329,0.18668228,2029.3,2028.3,0.56074029]
[1773286239030,0.18668228,2029.3,2028.5,0.56074029]
[1773286239233,6.457,2029.3,2028.5,0.56074029]
[1773286239531,0.20292946,2029.4,2028.5,0.56074029]
[1773286239835,6.65992946,2029.4,2028.5,0.56074029]
[1773286242234,0.20292946,2029.4,2028.5,0.56074029]
[1773286242435,0.00613232,2029.4,2028.5,0.56074029]
[1773286245537,0.20472035,2029.4,2028.5,0.56074029]
[1773286249337,0.00613232,2029.4,2028.5,0.56074029]
[1773286250638,0.00613232,2029.4,2028.7,0.59470083]
[1773286257152,0.21433617,2029.4,2028.7,0.59470083]
[1773286260555,0.21207128,2029.1,2028.6,0.59470083]
[1773286261554,0.21207128,2029.1,2028.2,0.59470083]
[1773286262254,0.21207303,2029.0,2028.2,0.59470083]
[1773286262756,0.21207303,2029.3,2028.4,1.35056562]
[1773286262957,0.2124902,2029.2,2028.5,0.59470083]
[1773286265455,0.00613232,2029.4,2028.6,0.59470083]
[1773286265654,0.1898622,2029.4,2028.6,0.59470083]
[1773286266960,0.00613232,2029.4,2028.6,0.59470083]
[1773286269660,0.00613232,2029.4,2028.8,0.59470083]
[1773286274662,0.19233482,2029.3,2028.8,0.59470083]
[1773286275764,0.58605974,2028.9,2028.4,0.59470083]
[1773286276158,1.34892626,2029.0,2028.4,0.59470083]
[1773286276364,1.934986,2029.0,2028.4,0.59470083]
[1773286279369,1.34892626,2029.2,2028.4,0.59470083]
[1773286279569,1.934986,2029.2,2028.4,0.59470083]
[1773286279964,0.59066641,2029.1,2028.4,0.59470083]
[1773286280772,0.59066641,2028.9,2028.4,0.59470083]
[1773286285669,0.59066641,2028.7,2028.1,0.60385789]
[1773286288679,0.59066641,2028.5,2028.1,0.60385789]
[1773286294071,0.59066641,2028.6,2028.1,0.60385789]
[1773286294275,7.04866641,2028.8,2028.1,0.60385789]
[1773286294477,0.59066641,2028.7,2028.1,0.60385789]
[1773286303591,7.04866641,2028.7,2028.1,0.60385789]
[1773286303790,0.56261693,2028.6,2028.1,0.60385789]
[1773286309187,0.56261693,2029.0,2028.5,0.58107486]
[1773286309396,7.02061693,2029.2,2028.5,0.58107486]
[1773286312487,0.59315978,2029.1,2028.5,0.58107486]
[1773286316094,0.59315978,2029.1,2028.7,0.54873871]
[1773286319394,0.59315978,2029.1,2028.6,0.54873871]
[1773286319902,0.59315978,2029.1,2028.4,0.54873871]
[1773286321100,0.59315978,2029.1,2028.6,0.54873871]
[1773286327004,0.59315978,2029.0,2028.6,0.54873871]
[1773286327902,0.59315978,2029.3,2028.6,0.54873871]
[1773286328103,7.05015978,2029.2,2028.6,0.54873871]
[1773286328305,0.59315978,2029.1,2028.6,0.54873871]
[1773286330412,0.59315978,2029.0,2028.6,0.54873871]
[1773286331112,6.457,2029.1,2028.6,0.54873871]
[1773286331113,7.05015978,2029.1,2028.6,0.54873871]
[1773286331307,0.59315978,2029.3,2028.8,0.54873871]
[1773286331511,7.05015978,2029.6,2029.2,0.54873871]
[1773286332409,0.59315978,2029.5,2029.2,0.54873871]
[1773286335615,0.59774782,2029.6,2029.2,0.54873871]
[1773286335811,0.00458804,2029.6,2029.2,0.54873871]
[1773286336022,7.05015978,2029.9,2029.4,0.54873871]
[1773286337013,7.05502589,2029.9,2029.4,0.54873871]
[1773286337410,0.59315978,2029.8,2029.4,0.54873871]
[1773286338018,7.05402589,2029.9,2029.4,0.54873871]
[1773286338518,0.59315978,2029.8,2029.4,0.54873871]
[1773286342216,0.00486611,2029.9,2029.4,0.54873871]
[1773286345223,0.57452959,2029.9,2029.4,0.54873871]
[1773286346218,0.00486611,2029.9,2029.4,0.54873871]
[1773286346622,0.28259741,2030.2,2029.7,0.55909422]
[1773286346815,6.455,2030.3,2029.7,0.55909422]
[1773286346816,0.28259741,2030.3,2029.7,0.55909422]
[1773286347518,0.28871127,2030.3,2029.7,0.56444339]
[1773286349117,0.28871127,2030.3,2029.7,0.00534917]
[1773286350222,0.29582583,2030.1,2029.7,0.56444339]
[1773286350617,0.29582583,2030.2,2029.7,0.56444339]
[1773286350927,0.30193969,2030.3,2029.7,0.56444339]
[1773286351117,0.00611386,2030.3,2029.7,0.56444339]
[1773286352032,0.29356054,2030.8,2029.9,0.55909422]
[1773286352929,0.29828537,2030.8,2029.9,0.55909422]
[1773286353932,6.75228537,2030.8,2029.9,0.55909422]
[1773286354122,0.29828537,2030.8,2030.1,0.55909422]
[1773286354732,0.00472483,2030.8,2030.3,0.55909422]
[1773286355032,0.29958085,2031.0,2030.3,0.55909422]
[1773286355231,0.30027734,2031.7,2030.5,0.55909422]
[1773286355431,0.30027734,2031.3,2030.5,0.55909422]
[1773286355932,0.30538211,2031.3,2030.5,0.55909422]
[1773286356524,0.30538211,2031.3,2030.6,0.55909422]
[1773286356730,0.30027734,2031.2,2030.6,0.55909422]
[1773286357336,0.00510477,2031.3,2030.6,0.55909422]
[1773286357632,0.30802362,2031.3,2030.6,0.55909422]
[1773286358835,0.30802362,2032.2,2031.1,0.55909422]
[1773286359041,0.30751269,2031.8,2031.1,0.55909422]
[1773286359839,0.31349486,2031.8,2031.1,0.55909422]
[1773286360035,6.76051269,2031.7,2031.1,0.55909422]
[1773286360234,0.30751269,2031.6,2031.1,0.55909422]
[1773286360633,0.30751269,2031.4,2030.6,0.55909422]
[1773286366129,6.451,2031.3,2030.6,0.55909422]
[1773286366333,0.2900521,2031.2,2030.6,0.55909422]
[1773286366739,0.2900521,2031.5,2030.6,0.55909422]
[1773286366935,0.2900521,2031.4,2030.6,0.55909422]
[1773286367440,6.7410521,2031.4,2030.6,0.55909422]
[1773286367940,0.2900521,2031.4,2030.6,0.55909422]
[1773286368239,6.7410521,2031.4,2030.6,0.55909422]
[1773286369641,0.2900521,2031.4,2030.6,0.55909422]
[1773286369841,6.7410521,2031.4,2030.6,0.55909422]
[1773286371340,0.28700787,2031.3,2030.6,0.55909422]
[1773286374243,1.63551061,2031.3,2030.6,0.55909422]
[1773286374437,0.28883216,2031.2,2030.6,0.55909422]
[1773286376441,0.2461,2031.6,2031.0,0.54309666]
[1773286376442,0.5328483,2031.6,2031.0,0.54309666]
[1773286376645,0.53883047,2031.8,2031.0,0.54309666]
[1773286377341,0.53883047,2031.8,2030.7,1.34850274]
[1773286377342,0.50913447,2031.8,2031.3,0.54309666]
[1773286377534,0.50913447,2031.8,2031.3,0.54892141]
[1773286379247,0.00598217,2031.8,2031.3,0.54892141]
[1773286379447,0.46133118,2032.3,2031.5,0.54309666]
[1773286379649,0.46133118,2032.2,2031.5,0.54309666]
[1773286380444,0.46490215,2032.2,2031.5,0.54309666]
[1773286380842,0.46133118,2032.1,2031.3,0.54892141]
[1773286383944,0.4703287,2031.9,2031.3,0.54892141]
[1773286384146,0.4703287,2031.9,2030.9,0.54309666]
[1773286385052,0.4703287,2031.9,2030.9,0.54680664]
[1773286385653,0.4703287,2031.9,2031.1,0.54309666]
[1773286385847,6.9193287,2031.9,2031.1,0.54309666]
[1773286386045,0.59571209,2032.1,2031.5,0.54309666]
[1773286386246,0.59571209,2032.4,2031.7,0.54309666]
[1773286387252,0.60162653,2032.4,2031.7,0.54309666]
[1773286389047,6.45491444,2032.4,2031.7,0.54309666]
[1773286389247,0.59571209,2032.3,2031.7,0.54309666]
[1773286389452,0.59571209,2032.3,2031.5,0.54309666]
[1773286391558,0.59571209,2032.1,2031.0,0.54309666]
[1773286392353,0.59571209,2031.9,2031.0,0.54309666]
[1773286394658,7.04371209,2031.9,2031.0,0.54309666]
[1773286395258,0.59571209,2031.9,2031.0,0.54309666]
[1773286395458,7.04371209,2031.9,2031.0,0.54309666]
[1773286395752,0.59571209,2032.6,2031.9,0.54309666]
[1773286397057,0.60031984,2032.6,2031.9,0.54309666]
[1773286398955,0.59571209,2033.2,2032.4,0.54309666]
[1773286399156,0.59571209,2033.2,2032.5,0.54309666]
[1773286400352,0.59972198,2033.2,2032.5,0.54826534]
[1773286402062,6.98869391,2033.3,2032.5,0.54826534]
[1773286402253,13.66375119,2034.3,2032.5,0.54826534]
[1773286402254,0.54169391,2033.6,2032.9,0.54453924]
[1773286402458,6.447,2033.7,2032.9,0.54453924]
[1773286402653,0.54169391,2033.6,2032.9,0.54453924]
[1773286403058,0.54608715,2033.6,2032.9,0.54453924]
[1773286404166,0.54608715,2033.6,2032.7,0.54453924]
[1773286404863,0.54169391,2033.5,2032.7,0.54453924]
[1773286406271,0.00439324,2033.6,2032.7,0.54453924]
[1773286406473,0.54608715,2033.6,2032.8,0.54453924]
[1773286407375,0.54169391,2033.5,2032.8,0.54453924]
[1773286409075,0.54169391,2033.5,2032.6,0.54453924]
[1773286410278,0.54169391,2033.3,2032.5,0.54970792]
[1773286410772,6.445,2033.2,2032.5,0.54970792]
[1773286410973,0.54169391,2033.1,2032.5,0.54970792]
[1773286412978,0.54169391,2033.1,2032.3,0.54453924]
[1773286413770,6.98669391,2033.0,2032.3,0.54453924]
[1773286413974,6.98669391,2033.0,2032.3,0.54825863]
[1773286414279,0.54169391,2033.1,2032.3,0.54825863]
[1773286415380,0.54169391,2033.2,2032.3,0.54825863]
[1773286420480,0.54169391,2033.0,2032.3,0.54825863]
[1773286422279,0.54169391,2033.0,2032.2,0.576838]
[1773286422482,4.11839293,2033.5,2031.1,13.1543707]
[1773286422483,7.61750119,2034.7,2033.0,6.04983]
[1773286422682,6.77693081,2034.5,2033.1,7.145]
[1773286422886,0.59880741,2034.4,2033.3,0.00088871]
[1773286423194,0.59836306,2034.2,2033.3,0.00088871]
[1773286423489,6.77648646,2034.1,2033.3,0.00088871]
[1773286423790,6.78010601,2034.1,2033.4,0.00088871]
[1773286424585,0.59836306,2034.0,2033.4,0.00088871]
[1773286427292,10.30090957,2033.9,2033.4,0.00088871]
[1773286428597,0.00361955,2034.1,2033.4,0.00088871]
[1773286428800,10.30090957,2034.0,2033.4,0.00088871]
[1773286429706,6.1781234,2034.0,2033.4,0.00088871]
[1773286430202,0.6165242,2033.9,2033.4,0.00088871]
[1773286433202,6.79556083,2034.0,2033.4,0.00088871]
[1773286433408,6.1781234,2034.0,2033.4,0.00088871]
[1773286433908,10.30090957,2034.0,2033.4,0.00088871]
[1773286434308,10.30452339,2034.0,2033.4,0.00088871]
[1773286435606,10.9210861,2034.0,2033.4,0.00088871]
[1773286436203,0.61656271,2033.9,2033.4,0.00088871]
[1773286436710,0.61656271,2033.7,2033.3,0.00377664]
[1773286437410,7.09838683,2033.9,2033.3,0.00377664]
[1773286437604,10.30090957,2033.8,2033.3,0.00377664]
[1773286438310,10.9282964,2033.7,2033.3,0.00377664]
[1773286438510,0.62738683,2033.6,2033.0,9.84048974]
[1773286438910,10.9282964,2033.6,2033.0,7.6605712]
[1773286439213,10.9282964,2033.6,2032.9,14.8065712]
[1773286439509,10.91817056,2033.5,2032.9,14.81086781]
[1773286439710,0.61726099,2033.5,2032.9,14.81086781]
[1773286440411,6.1781234,2033.4,2032.9,14.81086781]
[1773286440711,6.79538439,2033.4,2032.9,14.81086781]
[1773286441312,6.1781234,2033.4,2032.9,14.81086781]
[1773286441811,6.1781234,2033.4,2032.9,7.15029661]
[1773286442010,0.61655734,2033.8,2032.9,7.15029661]
[1773286442206,6.1781234,2033.5,2032.9,14.81086781]
[1773286442512,0.61655734,2033.7,2032.9,7.15029661]
[1773286442709,0.61655734,2033.5,2032.9,7.15029661]
[1773286443807,0.61622613,2033.3,2032.9,0.00429661]
[1773286444001,0.61622613,2033.3,2032.5,7.6605712]
[1773286444201,10.9171357,2033.2,2032.5,7.6605712]
[1773286444405,0.61622613,2033.2,2032.5,7.6605712]
[1773286444912,0.61622613,2033.2,2032.5,7.66594041]
[1773286446207,0.61622613,2033.2,2032.6,7.6605712]
[1773286446616,0.61984568,2033.2,2032.6,7.6605712]
[1773286448417,0.61622613,2033.2,2032.6,7.6605712]
[1773286449011,10.91896837,2033.1,2032.6,7.6605712]
[1773286449212,0.61443925,2033.1,2032.5,7.66594041]
[1773286449412,0.61443925,2033.1,2032.6,7.6605712]
[1773286449413,10.30090957,2033.0,2032.6,7.6605712]
[1773286450518,10.91534882,2033.0,2032.6,7.6605712]
[1773286450713,10.30452912,2033.0,2032.6,7.6605712]
[1773286451316,0.55007005,2033.3,2032.7,0.54702912]
[1773286451517,0.00361955,2033.1,2032.7,0.54702912]
[1773286451709,0.55007005,2033.2,2032.7,0.54702912]
[1773286452020,0.5536896,2033.1,2032.7,0.54702912]
[1773286452219,0.55007005,2033.1,2032.7,8.20760032]
[1773286452517,0.00361955,2033.0,2032.8,0.54702912]
[1773286452709,0.55007005,2033.1,2032.8,0.54702912]
[1773286452914,0.00361955,2032.9,2032.7,8.21027673]
[1773286453113,0.55007005,2033.1,2032.8,0.54970553]
[1773286453308,0.55007005,2033.1,2032.7,8.21027673]
[1773286453514,0.5536896,2033.0,2032.7,8.21027673]
[1773286453820,0.55007005,2033.0,2032.7,8.21027673]
[1773286454014,0.00361955,2032.9,2032.7,8.21027673]
[1773286454321,0.55007005,2033.1,2032.8,0.54970553]
[1773286454509,0.5536896,2033.1,2032.8,0.54970553]
[1773286454813,0.55007005,2033.1,2032.8,0.54970553]
[1773286455115,0.00361955,2032.9,2032.8,0.54970553]
[1773286455314,0.55007005,2033.1,2032.8,0.54970553]
[1773286456616,0.55368387,2034.0,2033.0,0.54970553]
[1773286456914,0.55368387,2034.0,2033.1,8.23258258]
[1773286457114,0.55368387,2034.0,2033.0,7.68287705]
[1773286457720,0.55368387,2034.0,2033.0,8.23258258]
[1773286458320,0.55368387,2034.0,2033.0,0.54970553]
[1773286460727,0.7582504,2033.8,2033.1,0.8040867]
[1773286461426,0.7582504,2033.8,2032.9,7.68287705]
[1773286461821,0.7582504,2033.8,2033.0,0.8040867]
[1773286462220,0.7582504,2033.8,2033.0,8.48696375]
[1773286462725,0.7582504,2033.6,2033.0,0.8040867]
[1773286464125,0.7582504,2033.6,2032.9,7.68287705]
[1773286464324,0.7582504,2033.6,2032.9,8.48696375]
[1773286464526,0.7582504,2033.6,2032.9,7.68287705]
[1773286464722,0.7582504,2033.6,2032.8,7.68287705]
[1773286464922,0.7582504,2033.6,2032.5,0.00536921]
[1773286465131,0.7582504,2033.6,2032.5,0.80945591]
[1773286469130,0.7582504,2033.4,2032.5,0.80945591]
[1773286470935,0.7582504,2033.2,2032.5,0.80945591]
[1773286473131,0.7582504,2033.7,2032.5,0.80945591]
[1773286473433,0.7582504,2033.7,2032.7,0.8040867]
[1773286484839,0.7582504,2033.7,2033.0,0.89614549]
[1773286485729,0.7582504,2033.7,2033.1,0.89614549]
[1773286491947,0.7582504,2033.7,2033.2,0.91341621]
[1773286495544,0.7582504,2033.7,2033.3,0.91341621]
[1773286497240,0.7582504,2033.7,2033.2,8.61329526]
[1773286497641,0.7582504,2033.7,2033.3,0.91341621]
[1773286498846,0.7582504,2033.7,2033.2,7.69987905]
[1773286499044,0.7582504,2033.7,2033.3,0.91341621]
[1773286499243,7.2302504,2033.7,2033.3,0.91341621]
[1773286499745,0.93326282,2033.6,2033.3,0.91341621]
[1773286500138,0.93326282,2033.7,2033.3,0.91341621]
[1773286501243,0.93326282,2033.7,2033.2,8.61329526]
[1773286501448,0.93326282,2033.7,2033.2,0.91341621]
[1773286501848,0.93326282,2033.7,2033.0,8.61329526]
[1773286502243,0.93326282,2033.7,2033.1,7.69987905]
[1773286504150,0.93326282,2033.7,2033.2,0.91341621]
[1773286504652,0.93326282,2033.7,2033.1,8.61329526]
[1773286507553,0.93326282,2033.7,2033.2,0.91341621]
[1773286507851,0.93326282,2033.5,2033.1,8.61329526]
[1773286508050,0.93326282,2033.4,2033.1,8.61329526]
[1773286508252,7.39226282,2033.5,2033.2,0.91341621]
[1773286508751,6.459,2033.5,2033.2,0.91341621]
[1773286508949,6.458,2033.7,2033.2,0.91341621]
[1773286509948,6.456,2033.8,2033.2,0.91341621]
[1773286510849,7.38926282,2033.8,2033.2,0.91341621]
[1773286511854,0.93326282,2033.7,2033.2,0.91341621]
[1773286512454,0.93326282,2033.7,2033.1,7.69987905]
[1773286512656,0.93326282,2033.7,2033.1,8.61329526]
[1773286515160,0.93326282,2033.7,2033.2,0.91341621]
[1773286517562,0.93326282,2033.7,2033.1,9.04321968]
[1773286518357,0.93326282,2033.7,2033.1,1.34334063]
[1773286518958,0.93326282,2033.7,2033.0,8.61329526]
[1773286519160,0.93326282,2033.4,2032.9,7.69987905]
[1773286519358,0.93326282,2033.2,2032.8,8.61329526]
[1773286519552,0.93326282,2033.2,2032.8,0.91341621]
[1773286519758,0.93326282,2033.2,2032.7,8.61329526]
[1773286520465,0.93326282,2033.2,2032.7,0.91341621]
[1773286520662,0.93326282,2033.2,2032.7,2.25675684]
[1773286520858,0.93326282,2033.2,2032.8,1.00300471]
[1773286524070,0.93326282,2033.2,2032.7,1.34334063]
[1773286524470,0.93326282,2033.2,2032.7,2.34634534]
[1773286524769,0.93326282,2033.2,2032.5,10.0515936]
[1773286525071,0.93326282,2033.2,2032.6,1.00300471]
[1773286539778,1.01699175,2033.0,2032.4,1.00300471]
[1773286540078,1.01699175,2032.8,2032.4,1.00300471]
[1773286540679,1.01699175,2032.8,2032.4,1.00836467]
[1773286551789,1.01699175,2032.8,2032.2,8.64973765]
[1773286551992,1.01699175,2032.8,2032.2,0.95618154]
[1773286552392,1.01699175,2032.8,2032.0,9.03689674]
[1773286552393,1.01699175,2032.8,2032.1,0.95618154]
[1773286552686,0.99349626,2032.5,2032.1,0.95618154]
[1773286552887,0.99349626,2032.3,2032.1,0.00534293]
[1773286553093,0.99349626,2032.3,2031.9,0.95618154]
[1773286554093,0.99349626,2032.3,2031.9,0.96180884]
[1773286556398,7.46549626,2032.4,2031.9,0.95618154]
[1773286556599,6.472,2032.4,2031.9,0.95618154]
[1773286556796,0.99735586,2032.5,2032.1,0.95618154]
[1773286557000,6.478,2032.4,2032.1,0.95618154]
[1773286557500,6.478,2032.6,2032.3,0.95618154]
[1773286558098,7.47249626,2032.8,2032.3,0.95618154]
[1773286558400,7.47882633,2032.8,2032.3,0.95618154]
[1773286559401,7.47882633,2032.8,2032.5,0.95618154]
[1773286560095,6.482,2032.7,2032.5,0.95618154]
[1773286560295,6.482,2032.6,2032.5,0.95618154]
[1773286560502,0.99349626,2033.2,2032.5,0.95618154]
[1773286560799,0.99349626,2033.0,2032.7,0.95618154]
[1773286561002,7.47749626,2033.0,2032.7,0.95618154]
[1773286561191,7.48374156,2033.0,2032.7,0.95618154]
[1773286562400,7.48374156,2033.0,2032.5,0.95618154]
[1773286562596,6.486,2032.9,2032.5,0.95618154]
[1773286564198,0.99974156,2033.0,2032.6,2.29952217]
[1773286564399,0.99974156,2033.0,2032.7,0.95618154]
[1773286564699,6.488,2032.9,2032.7,0.95618154]
[1773286565002,0.99974156,2033.0,2032.7,0.95618154]
[1773286565203,6.488,2032.9,2032.7,0.95618154]
[1773286565799,0.99974156,2033.0,2032.7,0.95618154]
[1773286566003,6.489,2032.9,2032.7,0.95618154]
[1773286567706,0.99974156,2033.0,2032.7,0.95618154]
[1773286567907,6.49,2032.9,2032.7,0.95618154]
[1773286569307,0.99974156,2033.0,2032.7,0.95618154]
[1773286569506,7.48974156,2033.0,2032.7,0.95618154]
[1773286570608,0.99349626,2032.9,2032.6,2.29952217]
[1773286571103,0.99349626,2032.9,2032.6,1.34334063]
[1773286571311,0.99349626,2032.9,2032.5,0.95618154]
[1773286575309,6.4962453,2033.0,2032.5,0.95618154]
[1773286575513,6.4962453,2033.0,2032.7,0.95618154]
[1773286575813,7.49274156,2033.0,2032.7,0.95618154]
[1773286579814,0.99349626,2032.9,2032.6,0.95618154]
[1773286580009,0.99349626,2032.9,2032.4,0.96326259]
[1773286581016,7.48849626,2032.9,2032.4,0.96326259]
[1773286582116,0.99349626,2032.9,2032.4,0.96326259]
[1773286583014,7.4864394,2033.1,2032.6,0.96326259]
[1773286583916,0.9904394,2033.0,2032.6,0.96326259]
[1773286584114,0.00514282,2033.0,2032.6,0.96326259]
[1773286587826,0.99558222,2033.0,2032.6,0.96326259]
[1773286592828,0.00514282,2033.0,2032.6,0.96326259]
[1773286593230,0.9904394,2033.1,2032.7,0.96326259]
[1773286594328,0.99464742,2033.1,2032.7,0.96326259]
[1773286597031,7.49764742,2033.1,2032.7,0.96326259]
[1773286598334,0.9904394,2033.0,2032.7,0.96326259]
[1773286599539,7.49764742,2033.1,2032.7,0.96326259]
[1773286600640,0.9904394,2033.0,2032.7,0.96326259]
[1773286600842,7.49764742,2033.1,2032.7,0.96326259]
[1773286601338,0.96208654,2033.0,2032.7,0.96326259]
[1773286602341,0.96208654,2033.0,2032.6,0.99106797]
[1773286604244,0.96208654,2033.0,2032.5,8.68462408]
[1773286604446,0.96208654,2033.0,2032.6,0.99106797]
[1773286606249,0.96208654,2033.0,2032.5,7.69355611]
[1773286606547,0.96208654,2033.0,2032.5,8.68462408]
[1773286611754,0.96208654,2033.0,2032.4,8.73452181]
[1773286611953,0.96208654,2033.0,2032.3,7.69355611]
[1773286612453,0.96208654,2033.0,2032.2,1.0409657]
[1773286613452,1.02177687,2032.8,2032.1,1.04456562]
[1773286613652,1.02177687,2032.6,2032.1,1.04456562]
[1773286615155,7.54277687,2032.5,2032.1,1.04456562]
[1773286616153,1.02177687,2032.4,2032.1,1.04456562]
[1773286616358,1.02177687,2032.4,2031.9,1.34392088]
[1773286616359,1.02177687,2032.4,2031.9,1.0409657]
[1773286617261,1.02177687,2032.4,2031.9,1.04584128]
[1773286622259,1.02177687,2032.4,2031.9,0.00487558]
[1773286622661,1.02177687,2032.4,2031.6,1.0409657]
[1773286623664,1.02177687,2032.4,2031.6,1.04634583]
[1773286624670,1.02177687,2032.4,2031.6,0.00538013]
[1773286624864,1.02177687,2032.4,2031.6,1.04634583]
[1773286625068,1.02177687,2032.2,2031.6,1.04634583]
[1773286625669,7.55677687,2032.1,2031.6,1.04634583]
[1773286627268,7.55877687,2032.1,2031.6,1.04634583]
[1773286628571,1.02177687,2032.0,2031.6,1.04634583]
[1773286629872,1.02177687,2032.0,2031.4,1.0409657]
[1773286630264,1.02177687,2032.4,2031.5,1.0409657]
[1773286630468,7.56177687,2032.3,2031.9,1.0409657]
[1773286630666,6.54,2032.4,2032.1,1.0409657]
[1773286630869,0.00420802,2033.1,2032.1,1.0444965]
[1773286630870,1.02177687,2033.0,2032.1,1.0444965]
[1773286631065,1.02177687,2032.8,2032.1,1.0444965]
[1773286632674,7.56377687,2032.8,2032.1,1.0444965]
[1773286633975,1.02177687,2032.7,2032.1,1.0444965]
[1773286637676,1.02177687,2032.7,2032.2,1.0409657]
[1773286640579,2.36636397,2032.7,2032.1,0.0035308]
[1773286640779,1.01566352,2032.6,2032.1,1.07598051]
[1773286642874,1.01566352,2032.4,2031.8,1.07244971]
[1773286643075,1.01566352,2032.2,2031.7,2.41703681]
[1773286643270,1.01566352,2032.2,2031.8,1.07244971]
[1773286643676,1.01566352,2032.2,2031.7,1.3445871]
[1773286643876,1.01566352,2032.2,2031.7,2.42191952]
[1773286644278,1.01566352,2032.2,2031.8,1.07244971]
[1773286644678,1.01566352,2032.2,2031.7,2.42191952]
[1773286644878,1.01566352,2032.2,2031.8,1.07244971]
[1773286645881,1.01566352,2032.2,2031.7,2.42191952]
[1773286646078,1.01566352,2032.2,2031.7,0.00488271]
[1773286646584,1.01566352,2032.2,2031.7,1.07733242]
[1773286648888,1.01566352,2032.2,2031.7,0.00488271]
[1773286649085,1.01566352,2032.2,2031.7,1.07733242]
[1773286649286,1.01566352,2032.2,2031.5,2.41703681]
[1773286649485,1.01566352,2032.2,2031.5,1.07244971]
[1773286649987,1.01566352,2032.2,2031.6,1.07244971]
[1773286650395,1.01566352,2032.2,2031.6,1.0780421]
[1773286650790,6.556,2032.1,2031.8,1.07244971]
[1773286650997,1.01566352,2032.3,2031.8,1.07244971]
[1773286651190,6.556,2032.2,2031.8,1.07244971]
[1773286651591,7.57166352,2032.2,2031.8,1.07244971]
[1773286652195,1.01566352,2032.2,2031.8,1.07244971]
[1773286652394,6.558,2032.2,2032.0,1.07244971]
[1773286653002,6.559,2032.3,2032.0,1.07244971]
[1773286653402,7.57466352,2032.3,2032.0,1.07244971]
[1773286653900,1.01566352,2032.2,2031.8,1.07244971]
[1773286658904,1.01566352,2032.2,2031.6,0.00559239]
[1773286659409,1.01566352,2032.2,2031.6,1.0780421]
[1773286659810,6.566,2032.1,2031.7,1.07244971]
[1773286660109,6.566,2032.1,2031.6,0.00559239]
[1773286660110,1.01566352,2031.8,2031.6,0.00559239]
[1773286660310,1.01566352,2031.8,2031.4,1.07244971]
[1773286660608,1.01566352,2031.8,2031.5,1.07244971]
[1773286661005,1.00801511,2032.0,2031.5,1.07244971]
[1773286661212,1.00801511,2032.0,2031.5,1.07839417]
[1773286664008,1.00801511,2032.0,2031.5,0.00594446]
[1773286664904,1.00801511,2031.8,2031.1,2.3765022]
[1773286665105,1.00801511,2031.8,2031.2,1.0319151]
[1773286665305,1.00801511,2031.6,2031.1,1.0319151]
[1773286665907,1.01244484,2031.6,2031.1,1.03764053]
[1773286668009,6.576,2031.5,2031.3,1.0319151]
[1773286668312,5.52096624,2031.5,2031.3,1.0319151]
[1773286672715,1e-08,2031.6,2031.4,1.01961496]
[1773286679414,0.99106017,2031.6,2031.3,1.01961496]
[1773286679614,1e-08,2031.6,2031.3,1.01961496]
[1773286681220,1e-08,2031.6,2031.2,1.01961496]
[1773286683122,1e-08,2031.6,2031.1,2.36992749]
[1773286683318,1e-08,2031.6,2031.2,1.01961496]
[1773286689228,1e-08,2031.6,2031.1,2.36992749]
[1773286689428,0.99106017,2031.6,2031.1,1.02534039]
[1773286690936,1.23711016,2032.0,2031.1,1.02534039]
[1773286691228,0.99106016,2031.8,2031.2,1.01961496]
[1773286692026,0.99604435,2031.8,2031.2,1.01961496]
[1773286692232,7.59204435,2031.8,2031.2,1.01961496]
[1773286693731,0.00498419,2031.8,2031.4,1.01961496]
[1773286698226,0.99106016,2032.0,2031.4,1.01961496]
[1773286698426,0.99106016,2032.1,2031.7,1.3445871]
[1773286698625,6.599,2032.2,2032.0,1.01961496]
[1773286699131,0.99106016,2032.3,2032.0,1.01961496]
[1773286699435,7.59587729,2032.3,2032.0,1.01961496]
[1773286700634,7.59687729,2032.3,2032.0,1.01961496]
[1773286700824,6.60581713,2032.3,2032.0,1.01961496]
[1773286702128,0.00581713,2032.3,2032.0,1.01961496]
[1773286702326,6.60681713,2032.3,2032.0,1.01961496]